[Event "South Island Championships 2023"]
[Site "Oamaru, New Zealand"]
[Date "2023.09.27"]
[Round "2.6"]
[White "Johnson, Quentin J F"]
[Black "Summers, Paul G"]
[Result "1-0"]
[TimeControl "90 + 30"]
[WhiteFideId "4301480"]
[BlackFideId "3232883"]
[WhiteElo "2089"]
[BlackElo "1799"]

1. d4 {[%clk 01:30:56]} {[%emt 00:00:04]} c5 {[%clk 01:30:58]} {[%emt
00:00:03]} 2. d5 {[%clk 01:31:21]} {[%emt 00:00:06]} b5 {[%clk 01:31:22]}
{[%emt 00:00:05]} 3. e4 {[%clk 01:30:51]} {[%emt 00:00:59]} a6 {[%clk
01:31:46]} {[%emt 00:00:07]} 4. c4 {[%clk 01:30:48]} {[%emt 00:00:33]} bxc4
{[%clk 01:32:07]} {[%emt 00:00:09]} 5. Bxc4 {[%clk 01:31:12]} {[%emt 00:00:06]}
d6 {[%clk 01:32:26]} {[%emt 00:00:11]} 6. Nc3 {[%clk 01:31:33]} {[%emt
00:00:09]} g6 {[%clk 01:32:39]} {[%emt 00:00:16]} 7. h3 {[%clk 01:24:55]}
{[%emt 00:07:08]} Bg7 {[%clk 01:32:35]} {[%emt 00:00:34]} 8. Nf3 {[%clk
01:25:20]} {[%emt 00:00:06]} Nd7 {[%clk 01:30:57]} {[%emt 00:02:08]} 9. O-O
{[%clk 01:25:17]} {[%emt 00:00:33]} Nb6 {[%clk 01:27:40]} {[%emt 00:03:46]} 10.
Nd2 {[%clk 01:24:14]} {[%emt 00:01:33]} Nh6 {[%clk 01:26:44]} {[%emt 00:01:27]}
11. f4 {[%clk 01:23:29]} {[%emt 00:01:15]} f5 {[%clk 01:26:03]} {[%emt
00:01:10]} 12. e5 {[%clk 01:22:31]} {[%emt 00:01:29]} dxe5 {[%clk 01:23:37]}
{[%emt 00:02:56]} 13. fxe5 {[%clk 01:22:56]} {[%emt 00:00:05]} Bxe5 {[%clk
01:22:47]} {[%emt 00:01:21]} 14. Nf3 {[%clk 01:19:58]} {[%emt 00:03:27]} Bg7
{[%clk 01:21:44]} {[%emt 00:01:33]} 15. Qd3 {[%clk 01:14:54]} {[%emt 00:05:33]}
Nf7 {[%clk 01:20:01]} {[%emt 00:02:14]} 16. Bf4 {[%clk 01:13:54]} {[%emt
00:01:29]} Nd6 {[%clk 01:17:55]} {[%emt 00:02:36]} 17. b3 {[%clk 01:14:08]}
{[%emt 00:00:17]} O-O {[%clk 01:14:36]} {[%emt 00:03:49]} 18. Rad1 {[%clk
01:12:51]} {[%emt 00:01:47]} h6 {[%clk 01:09:17]} {[%emt 00:05:49]} 19. Ne5
{[%clk 01:12:08]} {[%emt 00:01:13]} g5 {[%clk 01:06:36]} {[%emt 00:03:10]} 20.
Nc6 {[%clk 01:11:19]} {[%emt 00:01:19]} Qc7 {[%clk 01:04:05]} {[%emt 00:03:01]}
21. Be3 {[%clk 01:08:47]} {[%emt 00:03:02]} Nbxc4 {[%clk 00:56:45]} {[%emt
00:07:51]} 22. bxc4 {[%clk 01:08:55]} {[%emt 00:00:22]} Bxc3 {[%clk 00:51:05]}
{[%emt 00:06:09]} 23. Qxc3 {[%clk 01:09:16]} {[%emt 00:00:09]} Ne4 {[%clk
00:51:21]} {[%emt 00:00:15]} 24. Qa3 {[%clk 00:57:34]} {[%emt 00:12:12]} Qd6
{[%clk 00:50:36]} {[%emt 00:01:14]} 25. Rb1 {[%clk 00:57:51]} {[%emt 00:00:13]}
f4 {[%clk 00:48:42]} {[%emt 00:02:24]} 26. Bc1 {[%clk 00:58:10]} {[%emt
00:00:11]} e6 {[%clk 00:42:04]} {[%emt 00:07:09]} 27. Re1 {[%clk 00:55:45]}
{[%emt 00:02:55]} exd5 {[%clk 00:40:11]} {[%emt 00:02:23]} 28. cxd5 {[%clk
00:56:10]} {[%emt 00:00:05]} Re8 {[%clk 00:35:38]} {[%emt 00:05:03]} 29. Qd3
{[%clk 00:52:00]} {[%emt 00:04:39]} Bf5 {[%clk 00:34:58]} {[%emt 00:01:10]} 30.
Rb7 {[%clk 00:43:45]} {[%emt 00:08:45]} Rac8 {[%clk 00:29:46]} {[%emt
00:05:43]} 31. Bb2 {[%clk 00:37:35]} {[%emt 00:06:40]} Ng3 {[%clk 00:22:56]}
{[%emt 00:07:19]} 32. Qc3 {[%clk 00:36:57]} {[%emt 00:01:08]} Rxe1+ {[%clk
00:22:39]} {[%emt 00:00:47]} 33. Qxe1 {[%clk 00:37:23]} {[%emt 00:00:05]} f3
{[%clk 00:10:56]} {[%emt 00:12:14]} 34. Ne7+ {[%clk 00:32:56]} {[%emt
00:04:57]} Kf8 {[%clk 00:11:11]} {[%emt 00:00:14]} 35. Bg7+ {[%clk 00:33:07]}
{[%emt 00:00:19]} 1-0

[Event "South Island Championships 2023"]
[Site "Oamaru, New Zealand"]
[Date "2023.09.27"]
[Round "2.7"]
[White "Dolejs, Dan"]
[Black "Lee, Edward S"]
[Result "0-1"]
[TimeControl "90 + 30"]
[WhiteFideId "4301692"]
[BlackFideId "4303229"]
[WhiteElo "1800"]
[BlackElo "2088"]

1. e4 {[%clk 01:30:57]} {[%emt 00:00:02]} c6 {[%clk 01:30:53]} {[%emt
00:00:07]} 2. Nf3 {[%clk 01:30:52]} {[%emt 00:00:24]} d5 {[%clk 01:31:16]}
{[%emt 00:00:19]} 3. exd5 {[%clk 01:31:07]} {[%emt 00:00:14]} cxd5 {[%clk
01:31:34]} {[%emt 00:00:14]} 4. Bb5+ {[%clk 01:31:04]} {[%emt 00:00:33]} Bd7
{[%clk 01:31:09]} {[%emt 00:00:54]} 5. Bxd7+ {[%clk 01:31:10]} {[%emt
00:00:23]} Nxd7 {[%clk 01:31:02]} {[%emt 00:00:37]} 6. d4 {[%clk 01:31:08]}
{[%emt 00:00:32]} e6 {[%clk 01:30:30]} {[%emt 00:01:03]} 7. O-O {[%clk
01:31:09]} {[%emt 00:00:29]} Bd6 {[%clk 01:29:37]} {[%emt 00:01:23]} 8. Bg5
{[%clk 01:29:55]} {[%emt 00:01:43]} Qc7 {[%clk 01:28:09]} {[%emt 00:01:59]} 9.
Qe2 {[%clk 01:28:18]} {[%emt 00:02:06]} h6 {[%clk 01:26:06]} {[%emt 00:02:34]}
10. Bh4 {[%clk 01:28:19]} {[%emt 00:00:28]} Ne7 {[%clk 01:23:36]} {[%emt
00:03:00]} 11. Nc3 {[%clk 01:26:42]} {[%emt 00:02:07]} a6 {[%clk 01:16:57]}
{[%emt 00:07:10]} 12. Bg3 {[%clk 01:25:28]} {[%emt 00:01:44]} O-O {[%clk
01:14:44]} {[%emt 00:02:43]} 13. Bxd6 {[%clk 01:23:27]} {[%emt 00:02:31]} Qxd6
{[%clk 01:15:08]} {[%emt 00:00:07]} 14. a3 {[%clk 01:21:29]} {[%emt 00:02:28]}
Rac8 {[%clk 01:13:28]} {[%emt 00:02:09]} 15. g3 {[%clk 01:17:41]} {[%emt
00:04:18]} Qb6 {[%clk 01:09:20]} {[%emt 00:04:39]} 16. Rab1 {[%clk 01:14:44]}
{[%emt 00:03:26]} Nf5 {[%clk 01:06:12]} {[%emt 00:03:38]} 17. Rfd1 {[%clk
01:13:50]} {[%emt 00:01:24]} Rc4 {[%clk 01:04:52]} {[%emt 00:01:50]} 18. Ne5
{[%clk 01:11:41]} {[%emt 00:02:39]} Nxd4 {[%clk 00:55:42]} {[%emt 00:09:40]} 19.
Rxd4 {[%clk 01:08:13]} {[%emt 00:03:59]} Nxe5 {[%clk 00:55:46]} {[%emt
00:00:25]} 20. Qxe5 {[%clk 01:08:18]} {[%emt 00:00:25]} Qxd4 {[%clk 00:55:59]}
{[%emt 00:00:17]} 21. Qd6 {[%emt 00:01:17]} Qc5 {[%emt 00:04:52]} 22. Qe5
{[%clk 01:01:34]} {[%emt 00:01:04]} d4 {[%clk 00:55:40]} {[%emt 00:00:50]} 23.
Qxc5 {[%emt 00:00:22]} Rxc5 {[%emt 00:00:08]} 24. Ne2 {[%clk 01:01:19]} {[%emt
00:00:15]} e5 {[%clk 00:55:31]} {[%emt 00:00:39]} 25. f4 {[%clk 00:57:13]}
{[%emt 00:04:35]} Rxc2 {[%clk 00:55:43]} {[%emt 00:00:19]} 26. Kf1 {[%clk
00:56:52]} {[%emt 00:00:51]} d3 {[%clk 00:55:16]} {[%emt 00:00:58]} 0-1

[Event "South Island Championships 2023"]
[Site "Oamaru, New Zealand"]
[Date "2023.09.27"]
[Round "2.9"]
[White "Mayrhuber, Nikola"]
[Black "Familton, Gregory"]
[Result "1-0"]
[TimeControl "90 + 30"]
[WhiteFideId "1637819"]
[BlackFideId "4317190"]
[WhiteElo "2059"]
[BlackElo "1751"]

1. d4 {[%clk 01:30:57]} {[%emt 00:00:02]} Nf6 {[%emt 00:00:03]} 2. c4 {[%clk
01:31:22]} {[%emt 00:00:04]} e6 {[%clk 01:31:09]} {[%emt 00:00:19]} 3. Nc3
{[%clk 01:31:47]} {[%emt 00:00:05]} Bb4 {[%clk 01:31:33]} {[%emt 00:00:07]} 4.
e3 {[%clk 01:32:13]} {[%emt 00:00:04]} O-O {[%clk 01:31:46]} {[%emt 00:00:16]}
5. Nf3 {[%clk 01:32:33]} {[%emt 00:00:10]} b6 {[%clk 01:31:56]} {[%emt
00:00:21]} 6. Bd2 {[%clk 01:31:41]} {[%emt 00:01:22]} Bb7 {[%clk 01:32:14]}
{[%emt 00:00:11]} 7. Bd3 {[%clk 01:31:34]} {[%emt 00:00:38]} c5 {[%clk
01:26:08]} {[%emt 00:06:35]} 8. a3 {[%clk 01:25:58]} {[%emt 00:06:07]} cxd4
{[%clk 01:26:16]} {[%emt 00:00:22]} 9. axb4 {[%clk 01:26:21]} {[%emt 00:00:07]}
dxc3 {[%clk 01:26:35]} {[%emt 00:00:10]} 10. Bxc3 {[%clk 01:26:45]} {[%emt
00:00:06]} d5 {[%clk 01:22:05]} {[%emt 00:05:01]} 11. c5 {[%clk 01:11:57]}
{[%emt 00:15:18]} Nbd7 {[%clk 01:20:58]} {[%emt 00:01:37]} 12. Bd4 {[%clk
00:56:41]} {[%emt 00:15:46]} Re8 {[%clk 01:20:27]} {[%emt 00:01:00]} 13. Ne5
{[%clk 00:55:25]} {[%emt 00:01:46]} Nxe5 {[%clk 01:09:06]} {[%emt 00:11:51]} 14.
Bxe5 {[%clk 00:55:48]} {[%emt 00:00:07]} Nd7 {[%clk 01:07:17]} {[%emt
00:02:19]} 15. Bd6 {[%clk 00:52:00]} {[%emt 00:04:18]} a5 {[%clk 01:02:07]}
{[%emt 00:05:41]} 16. Bb5 {[%clk 00:45:23]} {[%emt 00:07:07]} Qc8 {[%clk
00:48:39]} {[%emt 00:13:57]} 17. cxb6 {[%clk 00:36:33]} {[%emt 00:09:20]} axb4
{[%clk 00:43:44]} {[%emt 00:05:25]} 18. Rc1 {[%clk 00:33:35]} {[%emt 00:03:28]}
Qd8 {[%clk 00:42:38]} {[%emt 00:01:36]} 19. Rc7 {[%clk 00:24:46]} {[%emt
00:09:20]} Nxb6 {[%clk 00:41:10]} {[%emt 00:01:58]} 20. Bxe8 {[%clk 00:24:14]}
{[%emt 00:01:01]} Qxd6 {[%clk 00:41:20]} {[%emt 00:00:20]} 21. Bxf7+ {[%clk
00:24:29]} {[%emt 00:00:15]} Kf8 {[%clk 00:39:46]} {[%emt 00:02:05]} 22. Rxb7
{[%clk 00:24:45]} {[%emt 00:00:14]} Qc6 {[%clk 00:38:16]} {[%emt 00:01:59]} 23.
Rxb6 {[%clk 00:24:50]} {[%emt 00:00:25]} Qxb6 {[%clk 00:38:36]} {[%emt
00:00:10]} 24. Bh5 {[%clk 00:25:07]} {[%emt 00:00:12]} b3 {[%clk 00:33:06]}
{[%emt 00:06:00]} 25. O-O {[%clk 00:24:54]} {[%emt 00:00:44]} Ra2 {[%clk
00:32:18]} {[%emt 00:01:18]} 26. Qf3+ {[%clk 00:25:06]} {[%emt 00:00:17]} 1-0

[Event "South Island Championships 2023"]
[Site "Oamaru, New Zealand"]
[Date "2023.09.27"]
[Round "2.10"]
[White "Gold, Hamish R"]
[Black "Christie, Richie"]
[Result "1/2-1/2"]
[TimeControl "90 + 30"]
[WhiteFideId "4301579"]
[BlackFideId "4307470"]
[WhiteElo "1758"]
[BlackElo "1927"]

1. e4 {[%clk 01:30:22]} {[%emt 00:00:37]} Nf6 {[%clk 01:30:56]} {[%emt
00:00:04]} 2. e5 {[%clk 01:28:20]} {[%emt 00:02:32]} Nd5 {[%clk 01:31:05]}
{[%emt 00:00:22]} 3. d4 {[%clk 01:26:55]} {[%emt 00:01:54]} d6 {[%clk
01:31:34]} {[%emt 00:00:02]} 4. c4 {[%clk 01:25:37]} {[%emt 00:01:48]} Nb6
{[%clk 01:32:02]} {[%emt 00:00:02]} 5. f4 {[%clk 01:25:14]} {[%emt 00:00:53]}
dxe5 {[%clk 01:32:28]} {[%emt 00:00:05]} 6. fxe5 {[%clk 01:25:01]} {[%emt
00:00:41]} c5 {[%clk 01:32:55]} {[%emt 00:00:04]} 7. d5 {[%clk 01:24:31]}
{[%emt 00:00:59]} e6 {[%clk 01:33:24]} {[%emt 00:00:02]} 8. Nc3 {[%clk
01:17:53]} {[%emt 00:07:08]} exd5 {[%clk 01:33:51]} {[%emt 00:00:03]} 9. cxd5
{[%clk 01:17:42]} {[%emt 00:00:40]} c4 {[%clk 01:34:20]} {[%emt 00:00:03]} 10.
Nf3 {[%clk 01:16:19]} {[%emt 00:01:51]} Bb4 {[%clk 01:34:48]} {[%emt 00:00:03]}
11. Bxc4 {[%clk 01:12:20]} {[%emt 00:04:29]} Bxc3+ {[%clk 01:35:14]} {[%emt
00:00:05]} 12. bxc3 {[%clk 01:12:34]} {[%emt 00:00:14]} Nxc4 {[%clk 01:35:40]}
{[%emt 00:00:05]} 13. Qa4+ {[%clk 01:12:34]} {[%emt 00:00:30]} Nd7 {[%clk
01:36:10]} 14. Qxc4 {[%clk 01:12:48]} {[%emt 00:00:15]} Nb6 {[%clk 01:36:29]}
{[%emt 00:00:11]} 15. Qb5+ {[%clk 01:11:17]} {[%emt 00:02:01]} Qd7 {[%clk
01:36:58]} {[%emt 00:00:02]} 16. Rb1 {[%clk 00:58:03]} {[%emt 00:13:43]} Nxd5
{[%clk 01:33:58]} {[%emt 00:03:30]} 17. Qxd7+ {[%clk 00:55:11]} {[%emt
00:03:22]} Bxd7 {[%clk 01:29:29]} {[%emt 00:05:00]} 18. c4 {[%clk 00:54:35]}
{[%emt 00:01:05]} Nb6 {[%clk 01:21:00]} {[%emt 00:09:00]} 19. c5 {[%clk
00:53:30]} {[%emt 00:01:33]} Na4 {[%clk 01:21:29]} {[%emt 00:00:02]} 20. Rxb7
{[%clk 00:52:42]} {[%emt 00:01:18]} Nxc5 {[%clk 01:21:46]} {[%emt 00:00:14]} 21.
Rc7 {[%clk 00:51:45]} {[%emt 00:01:26]} Ne6 {[%clk 01:18:18]} {[%emt 00:03:59]}
22. Rc3 {[%clk 00:47:20]} {[%emt 00:04:52]} O-O {[%clk 01:16:40]} {[%emt
00:02:12]} 23. O-O {[%clk 00:47:34]} {[%emt 00:00:15]} Rfc8 {[%clk 01:16:08]}
{[%emt 00:01:02]} 24. Bb2 {[%clk 00:42:03]} {[%emt 00:06:01]} Rxc3 {[%clk
01:11:19]} {[%emt 00:05:20]} 25. Bxc3 {[%clk 00:42:19]} {[%emt 00:00:13]} Rc8
{[%clk 01:11:45]} {[%emt 00:00:05]} 26. Bb4 {[%clk 00:42:05]} {[%emt 00:00:43]}
h6 {[%clk 01:09:53]} {[%emt 00:02:22]} 27. a3 {[%clk 00:41:13]} {[%emt
00:01:21]} Bb5 {[%clk 01:09:39]} {[%emt 00:00:45]} 28. Re1 {[%clk 00:39:51]}
{[%emt 00:01:50]} Rc2 {[%clk 01:08:44]} {[%emt 00:01:25]} 29. Rd1 {[%clk
00:31:15]} {[%emt 00:09:07]} Re2 {[%clk 00:47:30]} {[%emt 00:21:44]} 30. Rd2
{[%clk 00:30:06]} {[%emt 00:01:39]} Re4 {[%clk 00:42:36]} {[%emt 00:05:24]} 31.
Bd6 {[%clk 00:27:34]} {[%emt 00:03:02]} g5 {[%clk 00:38:22]} {[%emt 00:04:45]}
32. Rc2 {[%clk 00:24:52]} {[%emt 00:03:10]} g4 {[%clk 00:36:20]} {[%emt
00:02:33]} 33. Nh4 {[%clk 00:24:26]} {[%emt 00:00:55]} Rf4 {[%clk 00:23:06]}
{[%emt 00:13:46]} 34. Rf2 {[%clk 00:23:46]} {[%emt 00:01:08]} Rc4 {[%clk
00:22:59]} {[%emt 00:00:39]} 35. h3 {[%clk 00:21:43]} {[%emt 00:02:32]} g3
{[%clk 00:21:58]} {[%emt 00:01:32]} 36. Rf1 {[%clk 00:19:03]} {[%emt 00:03:09]}
Rxh4 {[%clk 00:22:10]} {[%emt 00:00:19]} 37. Rb1 {[%clk 00:19:25]} {[%emt
00:00:07]} a6 {[%clk 00:21:58]} {[%emt 00:00:44]} 38. Be7 {[%clk 00:19:04]}
{[%emt 00:00:50]} Rc4 {[%clk 00:20:43]} {[%emt 00:01:45]} 39. Rd1 {[%clk
00:19:04]} {[%emt 00:00:28]} Nd4 {[%clk 00:20:27]} {[%emt 00:00:47]} 40. Bf6
{[%clk 00:18:55]} {[%emt 00:00:39]} Ne2+ {[%clk 00:20:36]} {[%emt 00:00:22]} 41.
Kf1 {[%clk 00:18:41]} {[%emt 00:00:44]} Rc1 {[%clk 00:18:42]} {[%emt 00:02:26]}
42. Rxc1 {[%clk 00:18:45]} {[%emt 00:00:26]} Nxc1+ {[%clk 00:19:10]} {[%emt
00:00:01]} 43. Ke1 {[%clk 00:19:07]} {[%emt 00:00:08]} Nd3+ {[%clk 00:19:29]}
{[%emt 00:00:11]} 44. Kd2 {[%clk 00:19:25]} {[%emt 00:00:12]} Kh7 {[%clk
00:18:54]} {[%emt 00:01:05]} 45. a4 {[%clk 00:19:27]} {[%emt 00:00:29]} Bxa4
{[%clk 00:18:14]} {[%emt 00:01:10]} 46. Kxd3 {[%clk 00:19:36]} {[%emt
00:00:20]} Bc6 {[%clk 00:18:40]} {[%emt 00:00:04]} 47. Bh4 {[%clk 00:15:42]}
{[%emt 00:04:23]} Bxg2 {[%clk 00:18:46]} {[%emt 00:00:25]} 48. Bxg3 {[%clk
00:16:06]} {[%emt 00:00:06]} Bxh3 {[%clk 00:19:13]} {[%emt 00:00:03]} 49. Bh4
{[%clk 00:15:40]} {[%emt 00:00:55]} Kg6 {[%clk 00:19:03]} {[%emt 00:00:41]} 50.
Kd4 {[%clk 00:15:52]} {[%emt 00:00:18]} Kf5 {[%clk 00:19:23]} {[%emt 00:00:09]}
51. Bf6 {[%clk 00:16:02]} {[%emt 00:00:20]} h5 {[%clk 00:19:39]} {[%emt
00:00:15]} 52. Kd5 {[%clk 00:16:03]} {[%emt 00:00:29]} Bf1 {[%clk 00:19:26]}
{[%emt 00:00:43]} 53. Kd6 {[%clk 00:16:07]} {[%emt 00:00:26]} Bc4 {[%clk
00:18:08]} {[%emt 00:01:47]} 54. Kc5 {[%clk 00:16:21]} {[%emt 00:00:17]} Bb5
{[%clk 00:18:09]} {[%emt 00:00:29]} 55. Kd6 {[%clk 00:16:43]} {[%emt 00:00:08]}
Kg4 {[%clk 00:18:17]} {[%emt 00:00:22]} 56. e6 {[%clk 00:16:07]} {[%emt
00:01:05]} fxe6 {[%clk 00:18:37]} {[%emt 00:00:12]} 57. Kxe6 {[%clk 00:16:30]}
{[%emt 00:00:05]} a5 {[%clk 00:18:51]} {[%emt 00:00:17]} 58. Kd5 {[%clk
00:16:47]} {[%emt 00:00:13]} a4 {[%clk 00:18:50]} {[%emt 00:00:31]} 59. Kc5
{[%clk 00:17:07]} {[%emt 00:00:09]} Bd3 {[%clk 00:17:48]} {[%emt 00:01:32]} 60.
Kb4 {[%clk 00:17:25]} {[%emt 00:00:12]} Bc2 {[%clk 00:18:16]} {[%emt 00:00:01]}
61. Ka3 {[%clk 00:17:17]} {[%emt 00:00:38]} 1/2-1/2

[Event "South Island Championships 2023"]
[Site "Oamaru, New Zealand"]
[Date "2023.09.27"]
[Round "2.8"]
[White "Paulsen, Jens"]
[Black "Fairley, Natasha"]
[Result "1-0"]
[TimeControl "90 + 30"]
[WhiteFideId "4320476"]
[BlackFideId "4301439"]
[WhiteElo "2080"]
[BlackElo "1771"]

1. e4 {[%clk 01:30:56]} {[%emt 00:00:03]} e5 {[%clk 01:30:52]} {[%emt
00:00:10]} 2. Nf3 {[%clk 01:31:23]} {[%emt 00:00:03]} Nc6 {[%clk 01:31:08]}
{[%emt 00:00:14]} 3. Bb5 {[%clk 01:31:51]} {[%emt 00:00:01]} d6 {[%clk
01:30:43]} {[%emt 00:00:56]} 4. O-O {[%clk 01:32:15]} {[%emt 00:00:06]} Bg4
{[%clk 01:30:39]} {[%emt 00:00:34]} 5. c3 {[%clk 01:31:50]} {[%emt 00:00:56]}
Nf6 {[%clk 01:28:51]} {[%emt 00:02:17]} 6. Re1 {[%clk 01:24:17]} {[%emt
00:08:03]} a6 {[%clk 01:19:46]} {[%emt 00:09:35]} 7. Ba4 {[%clk 01:23:02]}
{[%emt 00:01:46]} Be7 {[%clk 01:17:45]} {[%emt 00:02:29]} 8. d3 {[%clk
01:13:03]} {[%emt 00:10:29]} O-O {[%clk 01:09:22]} {[%emt 00:08:53]} 9. Nbd2
{[%clk 01:13:06]} {[%emt 00:00:28]} Nd7 {[%clk 00:58:52]} {[%emt 00:11:00]} 10.
h3 {[%clk 01:12:08]} {[%emt 00:01:28]} Bh5 {[%clk 00:49:29]} {[%emt 00:09:51]}
11. Nf1 {[%clk 01:11:39]} {[%emt 00:01:00]} Nc5 {[%clk 00:47:20]} {[%emt
00:02:39]} 12. Bc2 {[%clk 01:11:42]} {[%emt 00:00:28]} Ne6 {[%clk 00:39:03]}
{[%emt 00:08:45]} 13. Ng3 {[%clk 01:08:30]} {[%emt 00:03:44]} Bxf3 {[%clk
00:36:58]} {[%emt 00:02:34]} 14. Qxf3 {[%clk 01:08:35]} {[%emt 00:00:25]} Bg5
{[%clk 00:36:34]} {[%emt 00:00:55]} 15. Be3 {[%clk 01:05:23]} {[%emt 00:03:41]}
g6 {[%clk 00:29:21]} {[%emt 00:07:43]} 16. Rad1 {[%clk 01:03:29]} {[%emt
00:02:25]} Bxe3 {[%clk 00:26:57]} {[%emt 00:02:54]} 17. fxe3 {[%clk 01:02:22]}
{[%emt 00:01:37]} Qg5 {[%clk 00:26:05]} {[%emt 00:01:21]} 18. Rf1 {[%clk
01:01:12]} {[%emt 00:01:40]} Rae8 {[%clk 00:23:21]} {[%emt 00:03:14]} 19. d4
{[%clk 01:00:16]} {[%emt 00:01:27]} Ncd8 {[%clk 00:21:49]} {[%emt 00:01:55]} 20.
Ne2 {[%clk 00:39:13]} {[%emt 00:21:39]} Qh4 {[%clk 00:18:40]} {[%emt 00:03:39]}
21. dxe5 {[%clk 00:31:42]} {[%emt 00:08:02]} dxe5 {[%clk 00:16:21]} {[%emt
00:02:48]} 22. Rd7 {[%clk 00:27:13]} {[%emt 00:04:59]} Re7 {[%clk 00:16:02]}
{[%emt 00:00:49]} 23. Rfd1 {[%clk 00:21:55]} {[%emt 00:05:48]} Rxd7 {[%clk
00:15:29]} {[%emt 00:01:03]} 24. Rxd7 {[%clk 00:22:24]} {[%emt 00:00:01]} Qe1+
{[%clk 00:09:33]} {[%emt 00:06:27]} 25. Qf1 {[%clk 00:18:46]} {[%emt 00:04:07]}
Qxf1+ {[%clk 00:09:31]} {[%emt 00:00:32]} 26. Kxf1 {[%clk 00:19:14]} {[%emt
00:00:02]} c6 {[%clk 00:09:23]} {[%emt 00:00:38]} 27. b4 {[%clk 00:17:01]}
{[%emt 00:02:44]} h5 {[%clk 00:08:14]} {[%emt 00:01:38]} 28. h4 {[%clk
00:16:11]} {[%emt 00:01:20]} Kg7 {[%clk 00:08:24]} {[%emt 00:00:20]} 29. Bb3
{[%clk 00:14:43]} {[%emt 00:01:58]} Re8 {[%clk 00:08:37]} {[%emt 00:00:16]} 30.
Bxe6 {[%clk 00:14:45]} {[%emt 00:00:30]} Nxe6 {[%clk 00:08:37]} {[%emt
00:00:30]} 31. Rxb7 {[%clk 00:15:07]} {[%emt 00:00:07]} c5 {[%clk 00:08:46]}
{[%emt 00:00:22]} 32. Rb6 {[%clk 00:13:21]} {[%emt 00:02:16]} Ra8 {[%clk
00:08:49]} {[%emt 00:00:26]} 33. Ke1 {[%clk 00:10:06]} {[%emt 00:03:45]} cxb4
{[%clk 00:09:10]} {[%emt 00:00:09]} 34. cxb4 {[%clk 00:10:22]} {[%emt
00:00:14]} a5 {[%clk 00:09:16]} {[%emt 00:00:25]} 35. b5 {[%clk 00:09:15]}
{[%emt 00:01:37]} Nc5 {[%clk 00:08:48]} {[%emt 00:00:58]} 36. Nc3 {[%clk
00:09:33]} {[%emt 00:00:12]} Rd8 {[%clk 00:08:06]} {[%emt 00:01:11]} 37. Rc6
{[%clk 00:07:36]} {[%emt 00:02:28]} Nd3+ {[%clk 00:07:55]} {[%emt 00:00:41]} 38.
Kf1 {[%clk 00:06:01]} {[%emt 00:02:05]} Nb4 {[%clk 00:06:33]} {[%emt 00:01:52]}
39. Rc7 {[%clk 00:06:11]} {[%emt 00:00:19]} Rd2 {[%clk 00:06:03]} {[%emt
00:00:59]} 40. b6 {[%clk 00:06:00]} {[%emt 00:00:43]} Rb2 {[%clk 00:05:10]}
{[%emt 00:01:23]} 41. a4 {[%clk 00:03:29]} {[%emt 00:03:01]} Na6 {[%clk
00:05:10]} {[%emt 00:00:30]} 42. Nb5 {[%clk 00:03:16]} {[%emt 00:00:42]} Nxc7
{[%clk 00:05:08]} {[%emt 00:00:33]} 43. bxc7 {[%clk 00:03:45]} Rc2 {[%clk
00:05:22]} {[%emt 00:00:15]} 44. Nd6 {[%clk 00:04:13]} {[%emt 00:00:02]} Kf8
{[%clk 00:02:35]} {[%emt 00:03:18]} 45. c8=Q+ {[%clk 00:04:35]} {[%emt
00:00:08]} Rxc8 {[%clk 00:03:00]} {[%emt 00:00:04]} 46. Nxc8 {[%clk 00:04:58]}
{[%emt 00:00:07]} Ke8 {[%clk 00:02:57]} {[%emt 00:00:33]} 47. Nd6+ {[%clk
00:05:27]} {[%emt 00:00:02]} Ke7 {[%clk 00:02:55]} {[%emt 00:00:32]} 48. Nc4
{[%clk 00:05:56]} {[%emt 00:00:01]} Ke6 {[%clk 00:03:16]} {[%emt 00:00:09]} 49.
Nxa5 {[%clk 00:06:23]} {[%emt 00:00:03]} f5 {[%clk 00:03:41]} {[%emt 00:00:05]}
50. exf5+ {[%clk 00:06:45]} {[%emt 00:00:08]} Kxf5 {[%clk 00:03:52]} {[%emt
00:00:17]} 51. Nc4 {[%clk 00:07:06]} {[%emt 00:00:11]} g5 {[%clk 00:04:14]}
{[%emt 00:00:07]} 52. a5 {[%clk 00:07:32]} {[%emt 00:00:05]} gxh4 {[%clk
00:04:37]} {[%emt 00:00:06]} 53. a6 {[%clk 00:07:57]} {[%emt 00:00:05]} Kg4
{[%clk 00:04:56]} {[%emt 00:00:11]} 54. Nxe5+ {[%clk 00:08:22]} {[%emt
00:00:05]} Kg3 {[%clk 00:05:16]} {[%emt 00:00:10]} 55. a7 {[%clk 00:08:47]}
{[%emt 00:00:07]} h3 {[%clk 00:05:42]} {[%emt 00:00:03]} 56. gxh3 {[%clk
00:08:42]} {[%emt 00:00:35]} 1-0